Cogmind - Beta 15 @@@ ROGUE MODE // 2025.10.11 @ 19:01:11 Player: NQH Result: Destroyed by Y-54 Guardian with Flak Gun Performance ------------- Evolutions (3) 1500 Regions Visited (5) 1000 Robots Destroyed (9) 45 Value Destroyed (320) 320 Prototype IDs (2) 40 Alien Tech Used (0) 0 Bonus (834) 834 TOTAL SCORE: 3739 Bonus ------- Pacifist 834 Cogmind --------- Core Integrity 0/700 Matter 290/300 Energy 95/100 System Corruption 2% Temperature Cool (18) Movement Core (50) Location -7/Factory Parts ------- > --- POWER (4) -------- (None) > --- PROPULSION (5) --- (None) > --- UTILITY (2) ------ (None) > --- WEAPON (2) ------- Katana > --- INVENTORY (5) ---- Improved Light Armor Plating Reactive Plating Katana Katana Peak State ------------ > --- POWER ------------ (None) > --- PROPULSION ------- (None) > --- UTILITY ---------- Advanced Visual Processing Unit Signal Interpreter > --- WEAPON ----------- Mini Assault Cannon > --- INVENTORY -------- Reactive Plating Chainsword Chainsword Chainsword Chainsword [Rating: 10] Favorites ----------- Power Enhanced Nuclear Core Power Core Enhanced Nuclear Core Propulsion VTOL Module Wheel Compact Wheel Flight Unit VTOL Module Utility Signal Interpreter Processor Signal Interpreter Protection Utility Shielding Weapon Chainsword Ballistic Cannon Mini Assault Cannon Slashing Weapon Chainsword Build | -11 -10 -9 -9 -8 -7 ------- Run | Yrd Mat Mat Min Mat Fac Slots Evolved 6 | . . 2 . 2 2 Power 3 | . . 2 . . 1 Propulsion 3 | . . . . 2 1 Utility . | . . . . . . Weapon . | . . . . . . Parts Attached 16 | 1 1 2 . 4 8 Power 1 | . . . . . 1 Engine . | . . . . . . Core 1 | . . . . . 1 Reactor . | . . . . . . Propulsion 3 | 1 . . . 1 1 Treads . | . . . . . . Leg . | . . . . . . Wheel 1 | 1 . . . . . Hover . | . . . . . . Flight 2 | . . . . 1 1 Utility 7 | . 1 2 . 3 1 Device . | . . . . . . Storage . | . . . . . . Processor 4 | . . 1 . 3 . Hackware . | . . . . . . Protection 3 | . 1 1 . . 1 Artifact . | . . . . . . Weapon 5 | . . . . . 5 Energy Gun . | . . . . . . Energy Cannon . | . . . . . . Ballistic Gun . | . . . . . . Ballistic Cannon 1 | . . . . . 1 Launcher . | . . . . . . Special Weapon . | . . . . . . Impact Weapon . | . . . . . . Slashing Weapon 4 | . . . . . 4 Piercing Weapon . | . . . . . . Special Melee Weapon . | . . . . . . Unidentified Prototypes 2 | . . . . . 2 Parts Lost 4 | . . . . 1 3 Power . | . . . . . . Propulsion 2 | . . . . 1 1 Utility 1 | . . . . . 1 Weapon 1 | . . . . . 1 Highest Loss Streak 3 | . . . . 1 3 To Critical Strikes . | . . . . . . Average Backups 3 | . . 3 5 4 4 Power . | . . . . . . Propulsion . | . . . . . . Utility . | . . . 1 1 1 Weapon 2 | . . 2 4 3 3 Tool/Special . | . . . . . . Unused Backups 6 | . . . . 5 1 Power . | . . . . . . Propulsion . | . . . . . . Utility 1 | . . . . 1 . Weapon 5 | . . . . 4 1 Tool/Special . | . . . . . . Average Slot Usage (%) 12 | . 8 13 22 15 11 Processor 7 | . . 2 11 13 6 Protection 2 | . 4 11 11 . . Slashing Weapon 1 | . . . . . 3 Peak Build Rating 10 | 1 1 5 5 8 10 Average Rating 4 | . . 2 5 5 4 On Entrance 2 | . 1 1 5 5 5 Naked Turns 34 | . 31 . . 1 2 Heaviest Build 3 | . 1 1 1 1 3 Greatest Support 16 | 16 16 3 3 5 4 Greatest Overweight (x) . | . . . . . . Average Overweight (x) . | . . . . . . Largest Inventory Capacity 5 | 5 5 5 5 5 5 Average Capacity 5 | 5 5 5 5 5 5 Most Carried 5 | . 1 5 5 5 5 Average Carried 3 | . . 3 5 4 4 Final Capacity 5 | 5 5 5 5 5 5 Final Carried 5 | . . 5 5 5 4 Class Distribution -------------------- 100% | Mutant Dominant Class ---------------- Mutant | -10/Materials Mutant | -9/Materials Mutant | -9/Mines Mutant | -8/Materials Mutant | -7/Factory Resources | -11 -10 -9 -9 -8 -7 ----------- Run | Yrd Mat Mat Min Mat Fac Matter Collected 266 | 83 . . . . 183 Remotely . | . . . . . . Salvage Created 388 | . . . . . 388 Parts 18 | . . . . . 18 Haulers Intercepted . | . . . . . . Recyclers Shooed 1 | . . . . 1 . Parts Field Recycled . | . . . . . . Retrieved Matter . | . . . . . . Parts Self-Destructed . | . . . . . . Prevented . | . . . . . . Kills | -11 -10 -9 -9 -8 -7 ------- Run | Yrd Mat Mat Min Mat Fac Combat Hostiles Destroyed 8 | . . . . . 8 Melee 8 | . . . . . 8 Classes Destroyed 5 | . . . . . 5 Recycler 1 | . . . . . 1 Swarmer 4 | . . . . . 4 Grunt 2 | . . . . . 2 Brawler 1 | . . . . . 1 Sentry 1 | . . . . . 1 Best Kill Streak 4 | . . . . . 4 Combat Bots Only 3 | . . . . . 3 Max Kills in Single Turn 1 | . . . . . 1 Gunslinging . | . . . . . . Exploded . | . . . . . . Melee 1 | . . . . . 1 Uniques/NPCs Destroyed . | . . . . . . Combat | -11 -10 -9 -9 -8 -7 -------- Run | Yrd Mat Mat Min Mat Fac Hostile Shots Fired 186 | . 18 23 . 49 96 Missed 67 | . 8 11 . 19 29 Hits 119 | . 10 12 . 30 67 Melee 3 | . . . . . 3 Projectile 116 | . 10 12 . 30 64 Critical Strikes 3 | . . . . 2 1 Damage Taken 1588 | . 107 125 . 492 864 Core 1383 | . 105 120 . 454 704 Absorbed by Shields . | . . . . . . Redirected to Shielding 1 | . . 1 . . . Core Remaining (%) 61 | 100 58 . 70 17 . Volleys Fired . | . . . . . . Largest . | . . . . . . Hottest . | . . . . . . Shots Fired . | . . . . . . Gun . | . . . . . . Cannon . | . . . . . . Launcher . | . . . . . . Special . | . . . . . . Kinetic . | . . . . . . Thermal . | . . . . . . Explosive . | . . . . . . Electromagnetic . | . . . . . . Robot Hit Streak . | . . . . . . Robot Miss Streak . | . . . . . . Penetration Max . | . . . . . . Secondary Targets . | . . . . . . Shots Hit Robots 20 | . . . . . 20 Core Hits 11 | . . . . . 11 Critical Kills . | . . . . . . Critical Parts Destroyed . | . . . . . . Critical Strikes 5 | . . . . . 5 Sever 5 | . . . . . 5 Melee Attacks 28 | . . . . . 28 Impact . | . . . . . . Slashing 28 | . . . . . 28 Piercing . | . . . . . . Sneak Attacks 1 | . . . . . 1 Combat Hostiles . | . . . . . . Follow-up Attacks . | . . . . . . Damage Inflicted 797 | . 16 13 . 44 724 Guns . | . . . . . . Cannons . | . . . . . . Explosions . | . . . . . . Melee 724 | . . . . . 724 Ramming 73 | . 16 13 . 44 . Kinetic . | . . . . . . Thermal . | . . . . . . Explosive . | . . . . . . Electromagnetic . | . . . . . . Impact . | . . . . . . Slashing 724 | . . . . . 724 Piercing . | . . . . . . Highest Corruption 2 | . . . . . 2 Average Corruption 1 | . . . . . 1 Corruption Purged . | . . . . . . Corruption Blocked . | . . . . . . Effects 2 | . . . . . 2 Heat Flow Errors 1 | . . . . . 1 Data Loss (major) 1 | . . . . . 1 Overload Shots . | . . . . . . Overflow Damage 46 | . . . . . 46 Projectiles . | . . . . . . Explosions . | . . . . . . Melee 46 | . . . . . 46 Knockbacks . | . . . . . . Impact . | . . . . . . Kinetic . | . . . . . . Secondary . | . . . . . . Self-Inflicted Damage 32 | . 7 6 . 19 . Shots . | . . . . . . Rammed 19 | . 3 2 . 14 . Targets Rammed 19 | . 3 2 . 14 . Kicked . | . . . . . . Crushed . | . . . . . . Highest Temperature 270 | . . . . 5 270 Average Temperature 119 | . . . . 5 142 Received Heat Transfer 546 | . 30 42 . 234 240 Siege Activations . | . . . . . . Martial Activations . | . . . . . . Shielding Activations . | . . . . . . Robots Disrupted . | . . . . . . Combat Hostiles . | . . . . . . Robots Corrupted . | . . . . . . Combat Hostiles . | . . . . . . Parts Fried . | . . . . . . Impact Corruptions . | . . . . . . Robots Melted . | . . . . . . Combat Hostiles . | . . . . . . Parts Melted . | . . . . . . Heat Transferred . | . . . . . . Parts Sabotaged . | . . . . . . Parts Stolen . | . . . . . . Parts Stripped . | . . . . . . Power Chain Reactions . | . . . . . . Alert | -11 -10 -9 -9 -8 -7 ------- Run | Yrd Mat Mat Min Mat Fac Maximum Alert Level . | . . . . . . Low Security (%) 100 | 100 100 100 100 100 100 Level 1 . | . . . . . . Level 2 . | . . . . . . Level 3 . | . . . . . . Level 4 . | . . . . . . Level 5 . | . . . . . . High Security . | . . . . . . Max Security . | . . . . . . Peak Influence 193 | . 50 40 15 160 193 Initial 63 | . . 16 15 5 63 Average 53 | . 18 17 15 40 87 Influence Increases 640 | . 60 60 . 210 310 Destroy 0b10 Robot/C 160 | . . . . . 160 Destroy 0b10 Robot/NC 5 | . . . . . 5 Destroy Leader 40 | . . . . . 40 Disable Machine 15 | . . . . . 15 Partial Spotted 15 | . . . . . 15 Lose Combat Pursuer 405 | . 60 60 . 210 75 Influence Decreases 427 | . 20 60 25 85 237 Entered New Map 136 | . . 24 25 10 77 Time Decay 251 | . 20 36 . 65 130 Lost Part 40 | . . . . 10 30 Squads Dispatched 9 | . 2 2 . 1 4 Investigation 3 | . . . . . 3 Extermination . | . . . . . . Reinforcement 6 | . 2 2 . 1 1 Assault . | . . . . . . Garrison . | . . . . . . Intercept . | . . . . . . Searches Triggered . | . . . . . . Construction Impeded . | . . . . . . Haulers Reinforced . | . . . . . . Active Scanning Responses . | . . . . . . Cargo Convoy Interrupts . | . . . . . . Stealth | -11 -10 -9 -9 -8 -7 --------- Run | Yrd Mat Mat Min Mat Fac Distress Signals 3 | . . . . 2 1 Communications Jammed . | . . . . . . Distress Signals . | . . . . . . Times Spotted 57 | . 7 11 . 21 18 Peak Tracking Total 11 | . 5 7 . 11 8 Tactical Retreats 9 | . 1 2 . 4 2 Traps | -11 -10 -9 -9 -8 -7 ------- Run | Yrd Mat Mat Min Mat Fac Traps Triggered 2 | . . . . . 2 Indirectly . | . . . . . . Trap Hack Attempts . | . . . . . . Triggered . | . . . . . . Disarmed . | . . . . . . Reprogrammed . | . . . . . . Reused . | . . . . . . Traps Extracted . | . . . . . . Installed . | . . . . . . Triggered . | . . . . . . Machines | -11 -10 -9 -9 -8 -7 ---------- Run | Yrd Mat Mat Min Mat Fac Machines Disabled 1 | . . . . . 1 Max in Single Turn 1 | . . . . . 1 Machines Repaired . | . . . . . . Machines Dismantled . | . . . . . . Machines Sabotaged . | . . . . . . Overloaded Fab Kills . | . . . . . . Hacking | -11 -10 -9 -9 -8 -7 --------- Run | Yrd Mat Mat Min Mat Fac Machines Accessed 2 | . . . . . 2 Terminals 1 | . . . . . 1 Fabricators 1 | . . . . . 1 Repair Stations . | . . . . . . Recycling Units . | . . . . . . Scanalyzers . | . . . . . . Garrison Access . | . . . . . . Total Hacks 7 | . . . . . 7 Successful . | . . . . . . Failed 7 | . . . . . 7 Catastrophic . | . . . . . . Database Lockouts . | . . . . . . Manual . | . . . . . . Terminals 4 | . . . . . 4 Fabricators 3 | . . . . . 3 Repair Stations . | . . . . . . Recycling Units . | . . . . . . Scanalyzers . | . . . . . . Garrison Access . | . . . . . . Terminal Hacks . | . . . . . . Fabricator Hacks . | . . . . . . Repair Station Hacks . | . . . . . . Recycling Unit Hacks . | . . . . . . Scanalyzer . | . . . . . . Garrison Access Hacks . | . . . . . . Unauthorized Hacks . | . . . . . . Terminals . | . . . . . . Fabricators . | . . . . . . Repair Stations . | . . . . . . Recycling Units . | . . . . . . Scanalyzers . | . . . . . . Garrison Access . | . . . . . . Data Cores Recovered . | . . . . . . Used . | . . . . . . Hacking Detections 2 | . . . . . 2 Full Trace Events 2 | . . . . . 2 Feedback Events 1 | . . . . . 1 Corruption 1 | . . . . . 1 Feedback Blocked . | . . . . . . Robot Schematics Acquired . | . . . . . . Robots Built . | . . . . . . Authchips . | . . . . . . Time . | . . . . . . Total Robot Build Rating . | . . . . . . Part Schematics Acquired . | . . . . . . Parts Built . | . . . . . . Authchips . | . . . . . . Time . | . . . . . . Total Part Build Rating . | . . . . . . Parts Repaired . | . . . . . . Time . | . . . . . . Parts Recycled . | . . . . . . Recycled Matter . | . . . . . . Retrieved Matter . | . . . . . . Retrieved Components . | . . . . . . Parts Scanalyzed . | . . . . . . Part Schematics Acquired . | . . . . . . Parts Damaged . | . . . . . . Bothacking | -11 -10 -9 -9 -8 -7 ------------ Run | Yrd Mat Mat Min Mat Fac Used RIF Installer . | . . . . . . Robots Hacked . | . . . . . . Non-combat . | . . . . . . Combat . | . . . . . . Robot Hacks Applied . | . . . . . . Relay Couplers Released . | . . . . . . Fabnet Peak Effective % . | . . . . . . Robots Rewired . | . . . . . . Allies Hacked . | . . . . . . Hacks Repelled . | . . . . . . Allies | -11 -10 -9 -9 -8 -7 -------- Run | Yrd Mat Mat Min Mat Fac Total Allies . | . . . . . . Largest Group . | . . . . . . Highest-Rated Group . | . . . . . . Highest-Rated Ally . | . . . . . . Total Orders . | . . . . . . Ally Attacks . | . . . . . . Total Damage . | . . . . . . Kills . | . . . . . . Allies Corrupted . | . . . . . . Allies Melted . | . . . . . . Intel | -11 -10 -9 -9 -8 -7 ------- Run | Yrd Mat Mat Min Mat Fac Active Infowar (turns) 248 | . . 20 13 147 68 Optics 203 | . . . . 135 68 Machine Analysis 45 | . . 20 13 12 . Robot Analysis Total . | . . . . . . Derelict Logs Recovered 1 | . . . 1 . . Drone Launches . | . . . . . . Drone Recoveries . | . . . . . . Exploration | -11 -10 -9 -9 -8 -7 ------------- Run | Yrd Mat Mat Min Mat Fac Turns Passed 647 | 22 60 92 13 181 279 Spaces Moved 1025 | 23 102 164 26 321 389 Core 849 | 4 95 164 26 265 295 Treads . | . . . . . . Legs . | . . . . . . Wheels 26 | 19 7 . . . . Hover . | . . . . . . Flight 150 | . . . . 56 94 Fastest Speed 35 | 50 50 50 50 35 35 Average Speed 49 | 91 53 50 50 47 46 Slowest Speed 100 | 100 100 50 50 50 50 Overloaded Moves . | . . . . . . Propulsion Burnouts . | . . . . . . Robots Hopped 3 | . . . . 3 . Potential Cave-ins . | . . . . . . Cave-ins Triggered . | . . . . . . Exploration Rate (%) 18 | 3 31 21 15 27 16 Regions Visited 5 Branch Regions 1 Pre-discovered Areas . | . . . . . . Known Exits Taken 2 | . . . 1 1 . Unknown Exits Taken 3 | 1 1 1 . . . Scrap Searched . | . . . . . . Spaces Dug . | . . . . . . Terrain Destroyed . | . . . . . . Melee . | . . . . . . Projectile . | . . . . . . AOE . | . . . . . . Terrain Rammed . | . . . . . . Walls Destroyed . | . . . . . . Machines Disabled . | . . . . . . Actions | -11 -10 -9 -9 -8 -7 --------- Run | Yrd Mat Mat Min Mat Fac Total 1124 | 23 107 172 25 348 449 Wait 14 | . . . . . 14 Move 1014 | 22 101 163 25 314 389 Hop 3 | . . . . 3 . Pick Up 11 | . . 4 . 5 2 Fast Attach 13 | 1 1 2 . 4 5 Attach 3 | . . . . . 3 Detach 7 | . 1 1 . 2 3 Swap . | . . . . . . Drop 12 | . 1 . . 6 5 Fire . | . . . . . . Melee 28 | . . . . . 28 Ram 19 | . 3 2 . 14 . Kick . | . . . . . . Crush . | . . . . . . Escape Stasis . | . . . . . . Rewire . | . . . . . . Trap . | . . . . . . Miscellaneous . | . . . . . . Route ------- -11/Scrapyard -10/Materials -9/Materials -9/Mines (discovered 2 exits: *Mat x2) -8/Materials -7/Factory (discovered 1 exit: [*Fac]) History --------- Turn | Location | Event 3 | -11/Scrapyard | Discovered new exit (range 16) 23 | -11/Scrapyard | Entered Materials 78 | -10/Materials | Discovered new exit (range 7) 83 | -10/Materials | Entered another Materials area 83 | -9/Materials | Evolved 2 slots: Power x2 172 | -9/Materials | Discovered new exit (range 7) 175 | -9/Materials | Entered Mines 177 | -9/Mines | Identified exit to Materials 181 | -9/Mines | Discovered exit to Materials (range 10) 188 | -9/Mines | Entered Materials 188 | -8/Materials | Evolved 2 slots: Propulsion x2 287 | -8/Materials | Core integrity fell below 50% 333 | -8/Materials | Build established: Mutant 343 | -8/Materials | Core integrity fell below 20% 366 | -8/Materials | Discovered new exit (range 7) 369 | -8/Materials | Identified exit to Factory 369 | -8/Materials | Entered Factory 369 | -7/Factory | Evolved 2 slots: Power x1, Propulsion x1 565 | -7/Factory | Core integrity fell below 50% 587 | -7/Factory | Lost 3 parts (1n1u1w) 623 | -7/Factory | Core integrity fell below 20% 642 | -7/Factory | Discovered new exit (range 5) 648 | -7/Factory | Destroyed by Y-54 Guardian with Flak Gun Last Messages --------------- 00579_ Acquired 55 matter. 00580_ U-05 Engineer works on Pressure Siphon. 00580_ K-01 Serf collects debris. 00584_ Critical hit (Burn: +37). 00587_ System corrupted: Heat flow error (+292). 00588_ Y-54 Guardian Flak Gun severed. 00592_ R-06 Scavenger collects Flak Gun. 00594_ Y-54 Guardian destroyed. 00597_ R-06 Scavenger collects Imp. Deuterium Engine. 00627_ G-47 Trooper Particle Gun severed. 00631_ Triggered Alarm Trap. 00631_ An alarm sounds. 00631_ ALERT: Alarm triggered, dispatching investigation squad. 00633_ Dropped Chainsword. 00635_ Acquired Katana. 00642_ EXIT=FOUND 00645_ G-47 Trooper Lgt. Nuclear Core severed. 00648_ G-47 Trooper destroyed. 00648_ U-05 Engineer lays Concrete. Map ----- +----------------------------------------------------+ | | | | | | | | | | | | | #######??????????????????????????????????????????? | | #??#???????????????????????????????????????? | | ! ### ####???????????????????????????????????? | | # ????###?????????????????????????????? | | # """ ????# ?????????????????????????????? | | ? "R"?????# #?????????????????????????????? | | ??? " "?????# #?????????????????????????????? | | ????# ??????# #?????????????????????????????? | | ??????? ??????# #######???????????????????????? | | #########+######## #???????????????????????? | | #???????????????????????? | | ##### #???????????????????????? | | #???# """ #???????????????????????? | | #???# ""F [ Y #???????????????????????? | | #???# "" """ """// #???????????????????????? | | #???# """ """ """/ / #???????????????????????? | | #???# """ """ """u % #???????????????????????? | | #???# ! #???????????????????????? | | #???# / a### ###???????????????? | | #???# !@*%!<] #???????????? | | #???#### #####+############ ###???????????????? | | #??????# ????????????????????##?????????????????? | | #??????# ???????????????????????????????????????? | | #??????# ???????????????????????????????????????? | | #??????#????????????????????????????????????????? | | #???????????????????????????????????????????????? | | #???????????????????????????????????????????????? | | #?? ???????????????????????????????????????????? | | #? ????????????????????????????????????????????? | | #? ????? ??????????????????????????????????????? | | # ? ??????????????????????????????????????? | | # ?????????????????????????????????????? | | + ?????????????????????????????????????? | | # ?????????????????????????????????????? | | #??? ??????????????????????????????????????? | | #??????? ??????????????????????????????????????? | | #???????????????????????????????????????????????? | | #???????????????????????????????????????????????? | | #???????????????????????????????????????????????? | | #???????????????????????????????????????????????? | | #???????????????????????????????????????????????? | | #???????????????????????????????????????????????? | | #???????????????????????????????????????????????? | | #???????????????????????????????????????????????? | +----------------------------------------------------+ Best States ------------- Heat Dissipation 34 Energy Generation 5 Energy Capacity 100 Matter Stores 300 Matter Capacity 300 Sight Range 20 Terrain Scan Density 10 Utility Shielding 33 Evasion (%) 63 Item Schematics ----------------- None Robot Schematics ------------------ None Fabricated ------------ Nothing Repaired ---------- Nothing Alien Tech Used ----------------- None Achievements -------------- None Challenges ------------ None Game ------ Seed MasterRecoilNanovents Manual? 0 Play Time 00:09:35 Cumulative 26.8 hours Start 2025.10.11 @ 18:54:30 End 2025.10.11 @ 19:01:11 Sessions 1 Manual Loads 0 Difficulty Rogue Special Mode None Game No. 102 Rogue 102 Adventurer 0 Explorer 0 Win Type - Total 0 Types 0/0/0/0/0/0/0/0/0/0 Lore% 10 Gallery% 29 Achievement% 26 Wizard Run 0 Options --------- Layout 1 ASCII 0 Keyboard 1 Movement Vi Keybinds 0 Fullscreen 1 Font 16/SmallcapsGlow Map View 55x38 Zoom Use 0% Tactical HUD 1 Map Filters NONE Filters NONE Steam 1 RUN: 55f9f3d7-f438-46e2-8df3-84bc64254d3e